fUSD/lending_fUSD_20250823
["ID","MTS","AMOUNT","RATE_DAILY","PERIOD"]
[380985416,1755922232531,-541.0,0.0001099,2]
[380985417,1755922232540,-1000.0,0.0001099,2]
[380985418,1755922232551,-1020.0,0.0001099,2]
[380985419,1755922232561,-2588.6076534,0.0001099,2]
[380985420,1755922232570,-499.63388481,0.0001099,2]
[380985421,1755922232580,-500.0,0.0001099,2]
[380985422,1755922232589,-2143.93885406,0.00010991,2]
[380985423,1755922232601,-2366.27325374,0.00010991,2]
[380985424,1755922232611,-1921.60445438,0.00010992,2]
[380985425,1755922232620,-1476.93565502,0.00010993,2]
[380985426,1755922232630,-352.42366355,0.00010993,2]
[380985427,1755922232641,-1346.84639115,0.00010993,2]
[380985428,1755922232651,-1254.60125534,0.00010994,2]
[380985429,1755922232661,-809.93245598,0.00010995,2]
[380985430,1755922232671,-1032.26685566,0.00010995,2]
[380985431,1755922232680,-183.08591051,0.00010996,2]
[380985436,1755922237835,-197.45759994,0.00010698,2]
[380985437,1755922237846,-182.32421317,0.00010698,2]
[380985438,1755922237857,-317.67578683,0.00010698,2]
[380985439,1755922237866,-254.53405919,0.00010698,2]
[380985440,1755922237875,-196.34778518,0.00010698,2]
[380985441,1755922237885,-816.91408949,0.00010996,2]
[380985442,1755922237895,-150.0,0.00010996,2]
[380985443,1755922237905,-2000.01,0.00010996,2]
[380985444,1755922237924,-1718.34159192,0.00010996,2]
[380985445,1755922238103,-875.65385162,0.00010996,2]
[380985446,1755922238135,-42122.83688919,0.00010996,2]
[380985447,1755922238147,-859.17381,0.00010996,2]
[380985448,1755922238158,-1072.35,0.00010996,2]
[380985459,1755922239844,-1570.22726734,0.00010996,2]
[380985460,1755922239857,-11515.68901728,0.00010996,2]
[380985461,1755922240101,-534.65829433,0.00010996,2]
[380985465,1755922242858,-6940.92350076,0.00010996,2]
[380985466,1755922243224,-4710.79460587,0.00010996,2]
[380985468,1755922245879,-2180.92786157,0.00010996,2]
[380985469,1755922246947,-761.25738331,0.00010996,2]
[380985470,1755922247155,-4303.93417318,0.00010996,2]
[380985471,1755922247192,-2421.153517,0.00010996,2]
[380985472,1755922247217,-347.14482896,0.00010996,2]
[380985473,1755922247228,-3951.2631276,0.00010996,2]
[380985474,1755922247258,-476.94431042,0.00010996,2]
[380985476,1755922439203,850.0,0.00028767,120]
[380985477,1755922464815,851.7,0.00028767,120]
[380985478,1755922525500,379.66,0.00010038,2]
[380985479,1755922585548,5000.0,0.0001,2]
[380985481,1755922669989,160.0,0.00010435,7]
[380985482,1755922674096,570.74,0.00010023,2]
[380985483,1755922681186,377.65,0.00010027,2]
[380985484,1755922702993,-441.9,0.00010666,2]
[380985485,1755922782205,250.0,0.00010032,2]
[380985486,1755922799050,669.44,0.00010032,2]
[380985487,1755922817520,150.0,0.00012441,5]
[380985488,1755922960382,200.0,0.00010032,2]
[380985489,1755923011506,1000.0,0.00010036,2]
[380985490,1755923041706,259.90532446,0.00012489,5]
[380985491,1755923180773,398.33833343,0.00014957,7]
[380985492,1755923320029,-3.448604,0.00010666,2]
[380985493,1755923341511,500.0,0.00028767,120]
[380985494,1755923347067,500.0,0.00028767,120]
[380985495,1755923348669,500.0,0.00028767,120]
[380985496,1755923349152,500.0,0.00028767,120]
[380985497,1755923350126,500.0,0.00028767,120]
[380985498,1755923351136,500.0,0.00028767,120]
[380985499,1755923351985,500.0,0.00028767,120]
[380985500,1755923352716,500.0,0.00028767,120]
[380985501,1755923353479,500.0,0.00028767,120]
[380985502,1755923354323,500.0,0.00028767,120]
[380985503,1755923355256,500.0,0.00028767,120]
[380985504,1755923355655,500.0,0.00028767,120]
[380985505,1755923356542,500.0,0.00028767,120]
[380985506,1755923357530,500.0,0.00028767,120]
[380985507,1755923359785,500.0,0.00028767,120]
[380985508,1755923360182,500.0,0.00028767,120]
[380985509,1755923361339,500.0,0.00028767,120]
[380985510,1755923362229,500.0,0.00028767,120]
[380985511,1755923363450,500.0,0.00028767,120]
[380985513,1755923364301,500.0,0.00028767,120]
[380985514,1755923377148,500.0,0.00028767,120]
[380985515,1755923379245,500.0,0.00028767,120]
[380985516,1755923386984,562.41280694,0.00028767,120]
[380985531,1755923432132,-250.0,0.00010675,2]
[380985532,1755923432142,-163.53436047,0.00010704,2]
[380985533,1755923432240,-2336.46563953,0.00010704,2]
[380985534,1755923432250,-2711.53436047,0.0001078,2]
[380985535,1755923432261,-331.12285114,0.0001078,2]
[380985560,1755923438184,-510.00112626,0.00010698,2]
[380985562,1755923438646,-18.17271518,0.00010698,2]
[380985563,1755923438663,-506.46144739,0.0001078,2]
[380985564,1755923438672,-500.0,0.00010877,2]
[380985565,1755923438681,-1200.0,0.00010889,2]
[380985566,1755923438691,-300.0,0.00010889,2]
[380985567,1755923438701,-3601.32918,0.0001089,2]
[380985568,1755923438711,-428.85042036,0.00010892,2]
[380985569,1755923438721,-150.0,0.00010959,2]
[380985570,1755923438731,-306.23805465,0.00010973,2]
[380985573,1755923440168,-193.76194535,0.00010973,2]
[380985574,1755923440183,-500.0,0.00010973,2]
[380985575,1755923440194,-500.0,0.00010973,2]
[380985576,1755923440204,-500.0,0.00010973,2]
[380985577,1755923440216,-500.0,0.00010973,2]
[380985578,1755923440227,-47.50277081,0.00010973,2]
[380985579,1755923440279,-452.49722919,0.00010973,2]
[380985580,1755923440290,-667.93715749,0.00010982,2]
[380985598,1755923443187,-2902.9126606,0.00010982,2]
[380985599,1755923443197,-151.0,0.00010985,2]
[380985600,1755923443208,-151.0,0.00010985,2]
[380985601,1755923443219,-151.0,0.00010985,2]
[380985602,1755923443229,-151.0,0.00010985,2]
[380985603,1755923443239,-151.0,0.00010985,2]
[380985604,1755923443249,-151.0,0.00010985,2]
[380985605,1755923443259,-301.93697503,0.00010985,2]
[380985606,1755923443268,-151.0,0.00010985,2]
[380985607,1755923443278,-150.0,0.00010987,2]
[380985608,1755923443287,-3356.08754449,0.00010988,2]
[380985609,1755923443299,-3807.82083689,0.00010988,2]
[380985610,1755923443433,-921.76908932,0.00010988,2]
[380985611,1755923443443,-2002.2845881,0.0001099,2]
[380985616,1755923446057,-455.69385952,0.0001099,2]
[380985617,1755923446819,-10807.20000845,0.0001099,2]
[380985618,1755923447140,-2127.125,0.0001099,2]
[380985619,1755923447161,-1158.49662617,0.0001099,2]
[380985620,1755923627301,-153.51950022,0.00010697,2]
[380985621,1755923627326,-372.26629935,0.00010697,2]
[380985622,1755923627350,-369.721689,0.00010794,2]
[380985623,1755923627373,-310.0,0.00010795,2]
[380985624,1755923627396,-192.82743522,0.00010892,2]
[380985625,1755923627418,-150.0,0.00010959,2]
[380985626,1755923627441,-1774.5593295,0.00010972,2]
[380985627,1755923627464,-648.62077238,0.00010973,2]
[380985628,1755923627487,-500.0,0.00010973,2]
[380985629,1755923627510,-500.0,0.00010973,2]
[380985630,1755923627533,-300.0,0.00010989,2]
[380985631,1755923627556,-150.0,0.00010989,2]
[380985632,1755923627581,-1281.48497433,0.0001099,2]
[380985633,1755923655090,160.0,0.00010412,7]
[380985634,1755923698394,-243.74725691,0.00010187,2]
[380985635,1755923706540,-173.2494873,0.00010169,2]
[380985636,1755923714973,-49.1894873,0.00010169,2]
[380985637,1755923715152,-76.6210254,0.00010169,2]
[380985638,1755923715164,-6.25274309,0.00010187,2]
[380985639,1755923715175,-42.93674421,0.00010187,2]
[380985640,1755923722794,-191.41006798,0.00010187,2]
[380985641,1755923755671,-13.89318781,0.00010187,2]
[380985642,1755923797711,1064.44,9.673e-05,2]
[380985643,1755923801821,-155.24,0.00010116,2]
[380985644,1755923801844,-2.09095128,0.00010119,2]
[380985645,1755923802116,278.8368334,0.00014163,7]
[380985646,1755923805062,-153.14904872,0.00010119,2]
[380985647,1755923805083,-46.85095128,0.00010122,2]
[380985648,1755923807353,-108.38904872,0.00010122,2]
[380985649,1755923807376,-155.24,0.00010125,2]
[380985650,1755923807399,-27.33095128,0.00010127,2]
[380985651,1755923808582,-156.52260195,0.00010127,2]
[380985652,1755923829026,-74.95162907,0.00010127,2]
[380985653,1755923829503,-74.95162907,0.00010128,2]
[380985654,1755923829536,-1.09674186,0.00010128,2]
[380985655,1755923835451,-70.80837093,0.00010128,2]
[380985656,1755923835695,-8.38325814,0.00010128,2]
[380985657,1755923835705,-70.80837093,0.00010131,2]
[380985658,1755923843099,-84.43162907,0.00010131,2]
[380985659,1755923843128,-75.89674186,0.00010134,2]
[380985660,1755923843348,-79.34325814,0.00010134,2]
[380985661,1755923843358,-5.08837093,0.00010137,2]
[380985662,1755923843375,-150.15162907,0.00010137,2]
[380985663,1755923843384,-5.08837093,0.0001014,2]
[380985664,1755923851325,-150.15162907,0.0001014,2]
[380985665,1755923851354,-25.27674186,0.00010143,2]
[380985666,1755923852183,-129.96325814,0.00010143,2]
[380985667,1755923852192,-20.18837093,0.00010146,2]
[380985668,1755923852214,-135.05162907,0.00010146,2]
[380985669,1755923852224,-20.18837093,0.00010149,2]
[380985670,1755923858030,-135.05162907,0.00010149,2]
[380985671,1755923858049,-135.05162907,0.00010152,2]
[380985672,1755923858096,-20.18837093,0.00010152,2]
[380985673,1755923858109,-132.40571273,0.00010155,2]
[380985674,1755923866342,-22.83428727,0.00010155,2]
[380985675,1755923866370,-155.24,0.00010158,2]
[380985676,1755923866454,-22.83428727,0.00010161,2]
[380985677,1755923866494,-132.40571273,0.00010161,2]
[380985678,1755923866503,-22.83428727,0.00010164,2]
[380985679,1755923866514,-43.85142546,0.00010164,2]
[380985680,1755923874580,-88.55428727,0.00010164,2]
[380985681,1755923874607,-94.22142546,0.00010167,2]
[380985682,1755923874631,-61.01857454,0.00010167,2]
[380985683,1755923874640,-27.53571273,0.00010603,2]
[380985684,1755923874656,-155.24,0.00010603,2]
[380985685,1755923882347,-254.540272,0.00010603,2]
[380985686,1755923922639,-166.66,0.00010387,2]
[380985687,1755923922680,-166.66,0.00010549,2]
[380985688,1755923922692,-275.93394124,0.00010549,2]
[380985689,1755923930273,-400.0,0.00010549,2]
[380985690,1755923960969,-191.41006798,0.0001005,2]
[380985691,1755923967633,-8.58993202,0.0001005,2]
[380985692,1755924030377,-166.08,0.0001005,2]
[380985693,1755924030398,-133.92,0.0001005,2]
[380985694,1755924034450,-300.0,0.0001005,2]
[380985695,1755924037993,-300.0,0.0001005,2]
[380985696,1755924042812,-266.08,0.0001005,2]
[380985697,1755924131944,11031.831046,0.00028767,120]
[380985698,1755924137651,-246.73631541,0.00010496,2]
[380985699,1755924144942,-400.0,0.00010496,2]
[380985704,1755924403857,322.66747785,0.0001,4]
[380985708,1755924630198,250.0,9.971e-05,2]
[380985717,1755924632432,-23.44102659,0.00010496,2]
[380985718,1755924632443,-62.68401527,0.00010603,2]
[380985719,1755924632453,-164.39337302,0.00010679,2]
[380985720,1755924632463,-181.16362761,0.00010694,2]
[380985721,1755924632474,-2500.0,0.00010695,2]
[380985722,1755924632483,-166.66,0.00010729,2]
[380985723,1755924632493,-300.0,0.00010764,2]
[380985724,1755924632503,-1200.0,0.00010764,2]
[380985725,1755924632512,-6664.03624824,0.00010765,2]
[380985729,1755924632768,-7462.35406213,0.00010765,2]
[380985736,1755924632830,-998.45759999,0.00010765,2]
[380985742,1755924632875,-677.26018224,0.00010765,2]
[380985743,1755924632887,-5270.45001763,0.00010765,2]
[380985748,1755924632938,-9447.24180405,0.00010765,2]
[380985926,1755924638279,-1600.66067578,0.00010765,2]
[380985927,1755924638289,-27.1316002,0.0001078,2]
[380985928,1755924638301,-860.14806455,0.0001078,2]
[380985929,1755924638310,-560.39656,0.0001088,2]
[380985930,1755924638320,-1064.44,0.00010882,2]
[380985931,1755924638329,-456.59845486,0.0001089,2]
[380985932,1755924638339,-80.62018458,0.0001089,2]
[380985933,1755924638443,-135.85190768,0.0001089,2]
[380985934,1755924638455,-844.31084504,0.0001089,2]
[380985935,1755924638464,-278.65055399,0.0001089,2]
[380985936,1755924638474,-173.2494873,0.0001089,2]
[380985937,1755924638483,-150.0,0.00010899,2]
[380985938,1755924638493,-5003.8398623,0.000109,2]
[380985939,1755924638503,-10000.0,0.000109,2]
[380985940,1755924638512,-238.40413262,0.000109,2]
[380985941,1755924638522,-150.0,0.00010959,2]
[380985942,1755924638531,-500.0,0.00010973,2]
[380985943,1755924638541,-500.0,0.00010973,2]
[380985944,1755924638552,-216.20468068,0.00010973,2]
[380985945,1755924638561,-500.0,0.00010973,2]
[380985946,1755924638571,-500.0,0.00010973,2]
[380985947,1755924638580,-150.0,0.00010979,2]
[380985948,1755924638590,-931.93096527,0.00010979,2]
[380985949,1755924638599,-1187.75515181,0.00010979,2]
[380985950,1755924638609,-1443.57933835,0.00010979,2]
[380985951,1755924638619,-42743.93453125,0.0001098,2]
[380985952,1755924638630,-20011.513398,0.0001098,2]
[380986101,1755924640218,-1142436.84410543,0.0001098,2]
[380986103,1755924640233,-1955.22771144,0.0001098,2]
[380986106,1755924640249,-1699.4035249,0.0001098,2]
[380986109,1755924640263,-2211.05189799,0.0001098,2]
[380986111,1755924640278,-2466.87608453,0.0001098,2]
[380986114,1755924640293,-2722.70027107,0.0001098,2]
[380986116,1755924640312,-2978.52445762,0.0001098,2]
[380986119,1755924640328,-277.35679052,0.00010983,2]
[380986121,1755924640343,-151.0,0.00010983,2]
[380986124,1755924640358,-151.0,0.00010983,2]
[380986127,1755924640373,-500.0,0.00010983,2]
[380986129,1755924640393,-151.0,0.00010983,2]
[380986132,1755924640408,-500.0,0.00010983,2]
[380986134,1755924640423,-151.0,0.00010983,2]
[380986137,1755924640438,-500.0,0.00010983,2]
[380986139,1755924640452,-151.0,0.00010983,2]
[380986142,1755924640467,-500.0,0.00010983,2]
[380986144,1755924640483,-151.0,0.00010983,2]
[380986147,1755924640498,-500.0,0.00010983,2]
[380986149,1755924640513,-151.0,0.00010983,2]
[380986152,1755924640528,-500.0,0.00010983,2]
[380986154,1755924640542,-151.0,0.00010983,2]
[380986157,1755924640557,-500.0,0.00010983,2]
[380986159,1755924640572,-151.0,0.00010983,2]
[380986162,1755924640586,-500.0,0.00010983,2]
[380986164,1755924640602,-151.0,0.00010983,2]
[380986167,1755924640616,-500.0,0.00010983,2]
[380986170,1755924640632,-159.77187403,0.00010983,2]
[380986172,1755924640647,-500.0,0.00010983,2]
[380986175,1755924640662,-512.28473497,0.00010983,2]
[380986177,1755924640676,-500.0,0.00010983,2]
[380986180,1755924640690,-151.0,0.00010983,2]
[380986183,1755924640704,-2107.5235134,0.00010988,2]
[380986185,1755924640719,-155.0,0.00010989,2]
[380986188,1755924640734,-2198.0,0.00010989,2]
[380986190,1755924640749,-12404.34907974,0.0001099,2]
[380986192,1755924640763,-184884.98799746,0.0001099,2]
[380986193,1755924640777,-151.0,0.0001099,2]
[380986194,1755924640792,-151.0,0.0001099,2]
[380986195,1755924640806,-151.0,0.0001099,2]
[380986196,1755924640821,-151.0,0.0001099,2]
[380986197,1755924640835,-151.0,0.0001099,2]
[380986198,1755924640849,-151.0,0.0001099,2]
[380986199,1755924640864,-151.0,0.0001099,2]
[380986201,1755924640878,-151.0,0.0001099,2]
[380986203,1755924640892,-151.0,0.0001099,2]
[380986206,1755924640907,-151.523467,0.0001099,2]
[380986208,1755924640921,-153.525847,0.0001099,2]
[380986211,1755924640937,-151.0,0.0001099,2]
[380986214,1755924640952,-151.0,0.0001099,2]
[380986216,1755924640966,-151.0,0.0001099,2]
[380986219,1755924640982,-151.0,0.0001099,2]
[380986221,1755924640998,-151.0,0.0001099,2]
[380986224,1755924641013,-156.247786,0.0001099,2]
[380986227,1755924641028,-151.0,0.0001099,2]
[380986229,1755924641043,-151.0,0.0001099,2]
[380986232,1755924641059,-151.0,0.0001099,2]
[380986234,1755924641076,-151.0,0.0001099,2]
[380986237,1755924641091,-151.0,0.0001099,2]
[380986240,1755924641108,-151.0,0.0001099,2]
[380986243,1755924641124,-151.0,0.0001099,2]
[380986245,1755924641133,-151.0,0.0001099,2]
[380986247,1755924641143,-151.0,0.0001099,2]
[380986249,1755924641153,-151.0,0.0001099,2]
[380986251,1755924641162,-151.411141,0.0001099,2]
[380986253,1755924641172,-151.0,0.0001099,2]
[380986255,1755924641181,-151.465624,0.0001099,2]
[380986257,1755924641191,-153.880982,0.0001099,2]
[380986259,1755924641200,-153.880982,0.0001099,2]
[380986261,1755924641210,-153.880982,0.0001099,2]
[380986263,1755924641219,-153.880982,0.0001099,2]
[380986265,1755924641230,-151.0,0.0001099,2]
[380986267,1755924641241,-151.0,0.0001099,2]
[380986269,1755924641251,-151.0,0.0001099,2]
[380986271,1755924641261,-151.0,0.0001099,2]
[380986273,1755924641273,-151.0,0.0001099,2]
[380986275,1755924641283,-151.0,0.0001099,2]
[380986277,1755924641293,-151.0,0.0001099,2]
[380986279,1755924641303,-151.0,0.0001099,2]
[380986281,1755924641313,-151.0,0.0001099,2]
[380986283,1755924641322,-151.0,0.0001099,2]
[380986285,1755924641331,-151.0,0.0001099,2]
[380986287,1755924641341,-151.0,0.0001099,2]
[380986310,1755924641710,-175.990694,0.0001099,2]
[380986311,1755924641908,-151.0,0.0001099,2]
[380986312,1755924641947,-151.0,0.0001099,2]
[380986313,1755924641962,-151.0,0.0001099,2]
[380986314,1755924641971,-151.0,0.0001099,2]
[380986315,1755924641981,-151.0,0.0001099,2]
[380986316,1755924641991,-207.63095,0.0001099,2]
[380986317,1755924642001,-151.0,0.0001099,2]
[380986318,1755924642010,-151.0,0.0001099,2]
[380986319,1755924642020,-151.0,0.0001099,2]
[380986320,1755924642029,-151.0,0.0001099,2]
[380986321,1755924642039,-151.0,0.0001099,2]
[380986322,1755924642049,-151.0,0.0001099,2]
[380986323,1755924642058,-151.0,0.0001099,2]
[380986324,1755924642068,-151.0,0.0001099,2]
[380986325,1755924642078,-151.0,0.0001099,2]
[380986326,1755924642088,-151.0,0.0001099,2]
[380986327,1755924642098,-238.589288,0.0001099,2]
[380986328,1755924642108,-151.349407,0.0001099,2]
[380986329,1755924642119,-151.0,0.0001099,2]
[380986330,1755924642129,-152.243745,0.0001099,2]
[380986331,1755924642139,-151.0,0.0001099,2]
[380986332,1755924642148,-151.0,0.0001099,2]
[380986333,1755924642158,-151.0,0.0001099,2]
[380986334,1755924642168,-151.0,0.0001099,2]
[380986335,1755924642177,-151.0,0.0001099,2]
[380986336,1755924642186,-151.742083,0.0001099,2]
[380986337,1755924642196,-151.0,0.0001099,2]
[380986338,1755924642206,-297.493573,0.0001099,2]
[380986339,1755924642216,-152.154267,0.0001099,2]
[380986340,1755924642225,-151.0,0.0001099,2]
[380986341,1755924642235,-151.0,0.0001099,2]
[380986342,1755924642245,-151.261818,0.0001099,2]
[380986343,1755924642255,-151.0,0.0001099,2]
[380986344,1755924642264,-151.0,0.0001099,2]
[380986345,1755924642275,-201.695492,0.0001099,2]
[380986346,1755924642285,-201.695492,0.0001099,2]
[380986347,1755924642295,-201.695492,0.0001099,2]
[380986348,1755924642306,-201.695492,0.0001099,2]
[380986349,1755924642315,-201.695492,0.0001099,2]
[380986350,1755924642326,-201.695492,0.0001099,2]
[380986351,1755924642336,-201.695492,0.0001099,2]
[380986352,1755924642345,-201.695492,0.0001099,2]
[380986353,1755924642355,-151.0,0.0001099,2]
[380986354,1755924642364,-151.0,0.0001099,2]
[380986355,1755924642374,-151.0,0.0001099,2]
[380986356,1755924642387,-151.0,0.0001099,2]
[380986357,1755924642396,-151.317427,0.0001099,2]
[380986358,1755924642405,-151.0,0.0001099,2]
[380986359,1755924642415,-151.0,0.0001099,2]
[380986360,1755924642426,-151.0,0.0001099,2]
[380986361,1755924642435,-151.0,0.0001099,2]
[380986362,1755924642445,-151.233341,0.0001099,2]
[380986363,1755924642456,-151.0,0.0001099,2]
[380986364,1755924642466,-151.0,0.0001099,2]
[380986365,1755924642476,-151.469407,0.0001099,2]
[380986366,1755924642486,-150.0,0.0001099,2]
[380986367,1755924642496,-500.0,0.0001099,2]
[380986368,1755924642506,-151.933676,0.0001099,2]
[380986369,1755924642516,-151.0,0.0001099,2]
[380986370,1755924642525,-151.444384,0.0001099,2]
[380986371,1755924642536,-151.0,0.0001099,2]
[380986372,1755924642546,-151.0,0.0001099,2]
[380986373,1755924642555,-151.0,0.0001099,2]
[380986374,1755924642565,-278.722844,0.0001099,2]
[380986375,1755924642574,-151.0,0.0001099,2]
[380986376,1755924642583,-151.0,0.0001099,2]
[380986377,1755924642593,-151.0,0.0001099,2]
[380986378,1755924642602,-151.0,0.0001099,2]
[380986379,1755924642612,-151.0,0.0001099,2]
[380986380,1755924642621,-151.0,0.0001099,2]
[380986381,1755924642631,-151.0,0.0001099,2]
[380986382,1755924642640,-151.0,0.0001099,2]
[380986383,1755924642651,-151.0,0.0001099,2]
[380986384,1755924642660,-151.0,0.0001099,2]
[380986385,1755924642670,-151.0,0.0001099,2]
[380986386,1755924642679,-151.0,0.0001099,2]
[380986387,1755924642690,-252.858432,0.0001099,2]
[380986388,1755924642699,-151.0,0.0001099,2]
[380986389,1755924642708,-151.0,0.0001099,2]
[380986390,1755924642718,-160.003133,0.0001099,2]
[380986391,1755924642728,-151.0,0.0001099,2]
[380986392,1755924642737,-151.0,0.0001099,2]
[380986393,1755924642746,-151.0,0.0001099,2]
[380986394,1755924642755,-151.0,0.0001099,2]
[380986395,1755924642765,-151.0,0.0001099,2]
[380986396,1755924642774,-151.0,0.0001099,2]
[380986397,1755924642784,-151.0,0.0001099,2]
[380986398,1755924642794,-151.0,0.0001099,2]
[380986399,1755924642804,-151.0,0.0001099,2]
[380986400,1755924642814,-152.269349,0.0001099,2]
[380986401,1755924642823,-151.0,0.0001099,2]
[380986402,1755924642833,-151.0,0.0001099,2]
[380986403,1755924642843,-151.0,0.0001099,2]
[380986404,1755924642852,-151.0,0.0001099,2]
[380986405,1755924642862,-151.0,0.0001099,2]
[380986406,1755924642871,-151.0,0.0001099,2]
[380986407,1755924642880,-151.0,0.0001099,2]
[380986408,1755924642890,-151.0,0.0001099,2]
[380986409,1755924642899,-151.0,0.0001099,2]
[380986410,1755924642908,-151.0,0.0001099,2]
[380986411,1755924642918,-151.0,0.0001099,2]
[380986412,1755924642927,-151.0,0.0001099,2]
[380986413,1755924642936,-223.877107,0.0001099,2]
[380986414,1755924642946,-151.0,0.0001099,2]
[380986415,1755924642955,-151.0,0.0001099,2]
[380986416,1755924642965,-151.0,0.0001099,2]
[380986417,1755924642974,-151.0,0.0001099,2]
[380986418,1755924642984,-151.0,0.0001099,2]
[380986419,1755924642993,-151.0,0.0001099,2]
[380986420,1755924643002,-151.0,0.0001099,2]
[380986421,1755924643011,-151.0,0.0001099,2]
[380986422,1755924643020,-257.002444,0.0001099,2]
[380986423,1755924643030,-151.0,0.0001099,2]
[380986424,1755924643039,-151.0,0.0001099,2]
[380986425,1755924643050,-151.0,0.0001099,2]
[380986426,1755924643060,-205.637749,0.0001099,2]
[380986427,1755924643070,-151.0,0.0001099,2]
[380986428,1755924643080,-246.895722,0.0001099,2]
[380986429,1755924643089,-151.0,0.0001099,2]
[380986430,1755924643099,-151.0,0.0001099,2]
[380986431,1755924643108,-151.0,0.0001099,2]
[380986432,1755924643117,-151.557887,0.0001099,2]
[380986433,1755924643126,-151.0,0.0001099,2]
[380986434,1755924643136,-151.0,0.0001099,2]
[380986435,1755924643146,-151.0,0.0001099,2]
[380986436,1755924643156,-151.0,0.0001099,2]
[380986437,1755924643165,-151.0,0.0001099,2]
[380986438,1755924643175,-151.0,0.0001099,2]
[380986440,1755924643184,-195.568992,0.0001099,2]
[380986441,1755924643193,-151.0,0.0001099,2]
[380986443,1755924643202,-151.0,0.0001099,2]
[380986444,1755924643213,-151.0,0.0001099,2]
[380986445,1755924643223,-151.0,0.0001099,2]
[380986446,1755924643232,-151.0,0.0001099,2]
[380986447,1755924643242,-151.0,0.0001099,2]
[380986448,1755924643251,-162.343621,0.0001099,2]
[380986449,1755924643261,-151.0,0.0001099,2]
[380986450,1755924643270,-151.0,0.0001099,2]
[380986451,1755924643280,-151.0,0.0001099,2]
[380986452,1755924643289,-151.0,0.0001099,2]
[380986453,1755924643299,-151.0,0.0001099,2]
[380986454,1755924643309,-151.0,0.0001099,2]
[380986455,1755924643319,-151.0,0.0001099,2]
[380986456,1755924643329,-151.0,0.0001099,2]
[380986457,1755924643338,-151.0,0.0001099,2]
[380986458,1755924643347,-151.0,0.0001099,2]
[380986459,1755924643357,-151.0,0.0001099,2]
[380986460,1755924643366,-157.616958,0.0001099,2]
[380986461,1755924643377,-151.0,0.0001099,2]
[380986462,1755924643388,-151.0,0.0001099,2]
[380986463,1755924643397,-292.06698,0.0001099,2]
[380986464,1755924643407,-159.775401,0.0001099,2]
[380986465,1755924643416,-151.0,0.0001099,2]
[380986466,1755924643426,-151.0,0.0001099,2]
[380986467,1755924643436,-151.0,0.0001099,2]
[380986468,1755924643446,-151.0,0.0001099,2]
[380986469,1755924643457,-190.43028,0.0001099,2]
[380986470,1755924643467,-151.0,0.0001099,2]
[380986471,1755924643476,-151.0,0.0001099,2]
[380986472,1755924643485,-151.0,0.0001099,2]
[380986473,1755924643494,-190.43028,0.0001099,2]
[380986474,1755924643503,-151.0,0.0001099,2]
[380986475,1755924643512,-190.43028,0.0001099,2]
[380986476,1755924643522,-151.0,0.0001099,2]
[380986477,1755924643531,-151.0,0.0001099,2]
[380986478,1755924643541,-190.43028,0.0001099,2]
[380986479,1755924643555,-151.0,0.0001099,2]
[380986480,1755924643564,-151.0,0.0001099,2]
[380986481,1755924643573,-190.43028,0.0001099,2]
[380986482,1755924643583,-151.0,0.0001099,2]
[380986483,1755924643592,-190.43028,0.0001099,2]
[380986484,1755924643601,-151.202795,0.0001099,2]